bitfinex/quotes_BTCUSD_20250809
["timestamp","ask_amount","ask_price","bid_price","bid_amount"]
[1754780435842,1.83426812,116620.0,116610.0,0.00017628]
[1754780439054,2.78762144,116620.0,116610.0,0.00017628]
[1754780439274,1.83426812,116620.0,116610.0,0.00017628]
[1754780442454,0.17154129,116590.0,116580.0,0.0204]
[1754780442681,0.37330773,116590.0,116580.0,0.02238]
[1754780442916,1.01406661,116590.0,116580.0,0.02238]
[1754780443155,1.03644661,116590.0,116580.0,0.02238]
[1754780443880,1.03644661,116590.0,116580.0,0.02338]
[1754780445256,0.40087773,116590.0,116580.0,0.02538]
[1754780445470,1.03644661,116590.0,116580.0,0.02538]
[1754780446183,1.04492528,116590.0,116580.0,0.02538]
[1754780447313,0.4093564,116590.0,116580.0,0.02538]
[1754780447531,1.04492528,116590.0,116580.0,0.02498]
[1754780450700,0.4093564,116590.0,116580.0,0.02498]
[1754780450874,1.04492528,116590.0,116580.0,0.02498]
[1754780451527,1.04492528,116590.0,116580.0,0.023]
[1754780452166,0.4093564,116590.0,116580.0,0.023]
[1754780452366,1.04492528,116590.0,116580.0,0.023]
[1754780452984,0.4093564,116590.0,116580.0,0.023]
[1754780453200,1.04492528,116590.0,116580.0,0.023]
[1754780455986,0.4093564,116590.0,116580.0,0.02507]
[1754780456154,0.72714084,116590.0,116580.0,0.02507]
[1754780456784,0.4093564,116590.0,116580.0,0.02507]
[1754780456981,0.72187084,116590.0,116580.0,0.02507]
[1754780457597,1.11326506,116590.0,116580.0,0.02507]
[1754780457811,0.72713084,116590.0,116580.0,0.02507]
[1754780458850,0.4093464,116590.0,116580.0,0.02507]
[1754780459114,0.72713084,116590.0,116580.0,0.02507]
[1754780459844,0.72713084,116590.0,116580.0,0.023]
[1754780460252,0.4093464,116590.0,116580.0,0.023]
[1754780460463,0.72713084,116590.0,116580.0,0.023]
[1754780461736,0.4093464,116590.0,116580.0,0.023]
[1754780461953,0.72713084,116590.0,116580.0,0.023]
[1754780467611,0.72713084,116590.0,116580.0,0.02507]
[1754780468882,0.4040464,116590.0,116580.0,0.02507]
[1754780469084,0.4040464,116590.0,116580.0,0.83523489]
[1754780469085,0.02238,116590.0,116580.0,0.83523489]
[1754780469232,0.30710129,116590.0,116580.0,0.51745045]
[1754780469956,0.30710129,116590.0,116580.0,0.02811]
[1754780470167,0.62488573,116590.0,116580.0,0.02811]
[1754780470366,0.62488573,116590.0,116580.0,0.02507]
[1754780470564,0.71167998,116590.0,116580.0,0.02507]
[1754780472162,0.72020553,116590.0,116580.0,0.02507]
[1754780473203,0.40242109,116590.0,116580.0,0.02507]
[1754780473414,0.72020553,116590.0,116580.0,0.02507]
[1754780473835,0.40242109,116590.0,116580.0,0.02507]
[1754780474071,0.72020553,116590.0,116580.0,0.02507]
[1754780474268,0.72546553,116590.0,116580.0,0.02507]
[1754780475746,0.40768109,116590.0,116580.0,0.02507]
[1754780475949,0.72546553,116590.0,116580.0,0.02507]
[1754780479161,0.40768109,116590.0,116580.0,0.023]
[1754780479579,0.72546553,116590.0,116580.0,0.023]
[1754780484481,0.40768109,116590.0,116580.0,0.023]
[1754780484691,0.72546553,116590.0,116580.0,0.023]
[1754780485586,0.40768109,116590.0,116580.0,0.023]
[1754780485811,0.72546553,116590.0,116580.0,0.023]
[1754780486967,0.39915554,116590.0,116580.0,0.023]
[1754780487194,0.71693998,116590.0,116580.0,0.023]
[1754780488244,0.39915554,116590.0,116580.0,0.023]
[1754780488677,0.72534034,116590.0,116580.0,0.023]
[1754780488892,0.4075559,116590.0,116580.0,0.023]
[1754780489140,0.72534034,116590.0,116580.0,0.023]
[1754780489988,0.71693998,116590.0,116580.0,0.023]
[1754780490420,0.40775887,116590.0,116580.0,0.023]
[1754780490643,0.72554331,116590.0,116580.0,0.023]
[1754780491487,0.71693998,116590.0,116580.0,0.023]
[1754780492783,0.39915554,116590.0,116580.0,0.023]
[1754780492997,0.72569448,116590.0,116580.0,0.023]
[1754780493685,0.40791004,116590.0,116580.0,0.023]
[1754780493930,0.71693998,116590.0,116580.0,0.023]
[1754780495005,0.39915554,116590.0,116580.0,0.023]
[1754780495235,0.78528976,116590.0,116580.0,0.023]
[1754780495460,0.79389526,116590.0,116580.0,0.023]
[1754780498354,0.47611082,116590.0,116580.0,0.023]
[1754780498592,0.79389526,116590.0,116580.0,0.023]
[1754780499260,0.40776104,116590.0,116580.0,0.023]
[1754780499533,0.72554548,116590.0,116580.0,0.023]
[1754780499988,0.75130548,116590.0,116580.0,0.023]
[1754780500834,0.43352104,116590.0,116580.0,0.023]
[1754780500964,0.75130548,116590.0,116580.0,0.023]
[1754780504084,0.43352104,116590.0,116580.0,0.023]
[1754780504289,0.75130548,116590.0,116580.0,0.023]
[1754780504503,0.43352104,116590.0,116580.0,0.023]
[1754780504710,0.75130548,116590.0,116580.0,0.023]
[1754780507250,0.43352104,116590.0,116580.0,0.023]
[1754780507461,0.75130548,116590.0,116580.0,0.023]
[1754780518778,0.43352104,116590.0,116580.0,0.023]
[1754780519009,0.75130548,116590.0,116580.0,0.023]
[1754780519871,0.43352104,116590.0,116580.0,0.023]
[1754780520091,0.75130548,116590.0,116580.0,0.023]
[1754780521905,0.43352104,116590.0,116580.0,0.023]
[1754780522339,0.75130548,116590.0,116580.0,0.023]
[1754780524745,0.43352104,116590.0,116580.0,0.023]
[1754780525189,0.74269998,116590.0,116580.0,0.023]
[1754780525658,0.25833554,116590.0,116580.0,0.34611444]
[1754780525875,0.02576,116600.0,116590.0,0.17154129]
[1754780526092,0.17152658,116600.0,116590.0,0.00214]
[1754780526301,0.17152658,116600.0,116590.0,0.32311444]
[1754780526722,0.30684658,116600.0,116590.0,0.32311444]
[1754780526987,0.30684658,116600.0,116590.0,0.00533]
[1754780527199,0.39364083,116600.0,116590.0,0.00533]
[1754780527404,0.39364083,116600.0,116590.0,0.17687129]
[1754780528225,0.39364083,116600.0,116590.0,0.49465573]
[1754780528433,0.65613087,116610.0,116590.0,0.49465573]
[1754780528638,1.08347731,116610.0,116590.0,0.49465573]
[1754780529517,1.08347731,116610.0,116590.0,0.17368129]
[1754780529716,0.17152658,116600.0,116590.0,0.17368129]
[1754780530130,0.17152658,116600.0,116590.0,0.49146573]
[1754780530335,0.25832083,116600.0,116590.0,0.17368129]
[1754780538618,0.25832083,116600.0,116590.0,0.49146573]
[1754780538826,0.25832083,116600.0,116590.0,0.17368129]
[1754780539047,0.25832083,116600.0,116590.0,0.49146573]
[1754780540141,0.25832083,116600.0,116590.0,0.17368129]
[1754780540366,0.25832083,116600.0,116590.0,0.49146573]
[1754780540773,0.25832083,116600.0,116590.0,0.17368129]
[1754780541017,0.57817527,116600.0,116590.0,0.17368129]
[1754780541241,0.26335083,116600.0,116590.0,0.49146573]
[1754780541456,0.58113527,116600.0,116590.0,0.17368129]
[1754780541894,0.26335083,116600.0,116590.0,0.17368129]
[1754780543657,0.58113527,116600.0,116590.0,0.17368129]
[1754780543897,0.26335083,116600.0,116590.0,0.17368129]
[1754780544125,0.26335083,116600.0,116590.0,0.49146573]
[1754780544626,0.58113527,116600.0,116590.0,0.17368129]
[1754780545507,0.26335083,116600.0,116590.0,0.17368129]
[1754780545726,0.58113527,116600.0,116590.0,0.17368129]
[1754780549715,0.58113527,116600.0,116590.0,0.00214]
[1754780549933,0.58113527,116600.0,116580.0,0.65323825]
[1754780550150,0.58113527,116600.0,116580.0,0.74010036]
[1754780551247,0.58113527,116600.0,116580.0,0.74310036]
[1754780551490,0.58113527,116600.0,116580.0,0.42531592]
[1754780551715,0.62748573,116590.0,116580.0,0.023]
[1754780551932,0.70266469,116590.0,116580.0,0.023]
[1754780552837,0.70266469,116590.0,116580.0,0.022]
[1754780553473,0.70266469,116590.0,116580.0,0.02]
[1754780553700,0.70266469,116590.0,116580.0,0.023]
[1754780553935,0.38488025,116590.0,116580.0,0.023]
[1754780554151,0.70266469,116590.0,116580.0,0.023]
[1754780557234,0.77101447,116590.0,116580.0,0.023]
[1754780558146,0.38488025,116590.0,116580.0,0.023]
[1754780558362,0.70266469,116590.0,116580.0,0.023]
[1754780559258,0.38488025,116590.0,116580.0,0.023]
[1754780559487,0.70266469,116590.0,116580.0,0.023]
[1754780559980,0.38488025,116590.0,116580.0,0.023]
[1754780560414,0.70266469,116590.0,116580.0,0.023]
[1754780560710,0.72842469,116590.0,116580.0,0.023]
[1754780561409,0.41064025,116590.0,116580.0,0.023]
[1754780561655,0.72842469,116590.0,116580.0,0.023]
[1754780562342,0.41064025,116590.0,116580.0,0.023]
[1754780562577,0.72842469,116590.0,116580.0,0.023]
[1754780562813,0.41064025,116590.0,116580.0,0.023]
[1754780563237,0.72842469,116590.0,116580.0,0.023]
[1754780563972,0.41064025,116590.0,116580.0,0.023]
[1754780564261,0.72842469,116590.0,116580.0,0.023]
[1754780565551,0.41064025,116590.0,116580.0,0.023]
[1754780565906,0.72842469,116590.0,116580.0,0.023]
[1754780568168,0.17154129,116590.0,116580.0,0.83514489]
[1754780568370,0.17154129,116590.0,116580.0,0.51736045]
[1754780568778,0.17154129,116590.0,116580.0,0.19957601]
[1754780568975,0.17154129,116590.0,116580.0,0.51736045]
[1754780570213,0.17154129,116590.0,116580.0,0.19957601]
[1754780570413,0.17154129,116590.0,116580.0,0.51736045]
[1754780571415,0.17154129,116590.0,116580.0,0.51438045]
[1754780571618,0.17154129,116590.0,116580.0,0.19659601]
[1754780571793,0.25401132,116590.0,116580.0,0.51438045]
[1754780572011,0.17154129,116590.0,116580.0,0.51438045]
[1754780573469,0.17154129,116590.0,116580.0,0.19659601]
[1754780573675,0.17154129,116590.0,116580.0,0.51438045]
[1754780575937,0.30664658,116600.0,116590.0,0.17154129]
[1754780576144,0.30664658,116600.0,116590.0,0.49136573]
[1754780576365,0.31169658,116600.0,116590.0,0.17358129]
[1754780576896,0.39610537,116600.0,116590.0,0.17358129]
[1754780579667,0.19726587,116610.0,116600.0,0.17152658]
[1754780579879,0.30663187,116610.0,116600.0,0.49135102]
[1754780580085,0.31168187,116610.0,116600.0,0.17356658]
[1754780580295,0.62946631,116610.0,116600.0,0.17356658]
[1754780580727,0.31168187,116610.0,116600.0,0.17356658]
[1754780581033,0.39519678,116610.0,116600.0,0.17356658]
[1754780583777,0.39519678,116610.0,116590.0,0.71130784]
[1754780583984,0.71298122,116610.0,116590.0,0.57618784]
[1754780584841,0.17445658,116600.0,116590.0,0.17254129]
[1754780585060,0.32283444,116600.0,116590.0,0.17254129]
[1754780585268,0.07634812,116600.0,116590.0,0.17254129]
[1754780585490,0.2478747,116600.0,116590.0,0.17254129]
[1754780585708,0.07634812,116600.0,116590.0,0.17254129]
[1754780585921,0.00505,116600.0,116590.0,0.17558129]
[1754780586142,0.00505,116600.0,116590.0,0.49436573]
[1754780586382,0.00505,116600.0,116590.0,0.49236573]
[1754780586565,0.00505,116600.0,116590.0,0.49436573]
[1754780589222,0.00505,116600.0,116590.0,0.17658129]
[1754780589430,0.00505,116600.0,116590.0,0.49436573]
[1754780591165,0.00505,116600.0,116590.0,0.17454129]
[1754780591374,0.32283444,116600.0,116590.0,0.17454129]
[1754780591583,0.00505,116600.0,116590.0,0.49232573]
[1754780591794,0.23952321,116600.0,116590.0,0.17454129]
[1754780593811,0.06799663,116600.0,116590.0,0.17454129]
[1754780594028,0.06799663,116600.0,116590.0,0.17658129]
[1754780594227,0.17657658,116600.0,116590.0,0.17658129]
[1754780596365,0.17657658,116600.0,116590.0,0.49436573]
[1754780597489,0.17657658,116600.0,116590.0,0.17658129]
[1754780597726,0.17657658,116600.0,116590.0,0.49436573]
[1754780599862,0.17657658,116600.0,116590.0,0.17658129]
[1754780600124,0.17657658,116600.0,116590.0,0.49436573]
[1754780600933,0.25667587,116600.0,116590.0,0.49436573]
[1754780601619,0.25667587,116600.0,116590.0,0.17658129]
[1754780601811,0.25667587,116600.0,116590.0,0.49436573]
[1754780603234,0.08514929,116600.0,116590.0,0.49436573]
[1754780603503,0.08514929,116600.0,116590.0,0.17658129]
[1754780603682,0.08514929,116600.0,116590.0,0.49436573]
[1754780604141,0.00505,116600.0,116590.0,0.49436573]
[1754780604405,0.00505,116600.0,116590.0,0.17658129]
[1754780604628,0.00505,116600.0,116590.0,0.49436573]
[1754780605759,0.17657658,116600.0,116590.0,0.17658129]
[1754780606143,0.17657658,116600.0,116590.0,0.49436573]
[1754780607082,0.25667587,116600.0,116590.0,0.49436573]
[1754780607292,0.25667587,116600.0,116590.0,0.17658129]
[1754780607508,0.25667587,116600.0,116590.0,0.49436573]
[1754780610443,0.17657658,116600.0,116590.0,0.49436573]
[1754780613374,0.17364658,116600.0,116590.0,0.49436573]
[1754780613579,0.00212,116600.0,116590.0,0.49436573]
[1754780613749,0.62741631,116610.0,116590.0,0.49436573]
[1754780614655,0.62741631,116610.0,116590.0,0.49336573]
[1754780615078,0.62741631,116610.0,116590.0,0.49436573]
[1754780616018,0.30963187,116610.0,116590.0,0.49436573]
[1754780616293,0.62741631,116610.0,116590.0,0.49436573]
[1754780616834,0.62717631,116610.0,116590.0,0.49436573]
[1754780617037,0.62717631,116610.0,116590.0,0.49236573]
[1754780617549,0.49229631,116610.0,116590.0,0.49236573]
[1754780617878,0.13488,116600.0,116590.0,0.49236573]
[1754780618821,0.17451187,116610.0,116590.0,0.49336573]
[1754780619052,0.30939187,116610.0,116600.0,0.31778444]
[1754780619279,0.62917631,116610.0,116590.0,0.49032573]
[1754780619497,0.49429631,116610.0,116590.0,0.49232573]
[1754780619700,0.62917631,116610.0,116600.0,0.17152658]
[1754780619905,0.31139187,116610.0,116600.0,0.17152658]
[1754780620117,0.62917631,116610.0,116600.0,0.17152658]
[1754780620739,0.49429631,116610.0,116600.0,0.17152658]
[1754780620970,0.62917631,116610.0,116600.0,0.17152658]
[1754780622986,0.62917631,116610.0,116600.0,0.24872691]
[1754780623830,0.31139187,116610.0,116600.0,0.07720033]
[1754780624048,0.62917631,116610.0,116590.0,0.27951182]
[1754780624271,0.62917631,116610.0,116590.0,0.48932573]
[1754780624919,0.71597056,116610.0,116590.0,0.48932573]
[1754780625134,0.71597056,116610.0,116590.0,0.49132573]
[1754780625380,0.17151187,116610.0,116600.0,0.49136102]
[1754780625567,0.30635187,116610.0,116600.0,0.49136102]
[1754780625767,0.30635187,116610.0,116600.0,0.17357658]
[1754780625991,0.30835187,116610.0,116600.0,0.25077449]
[1754780626203,0.31135187,116610.0,116600.0,0.25077449]
[1754780626615,0.31135187,116610.0,116600.0,0.56855893]
[1754780626816,0.31135187,116610.0,116600.0,0.25077449]
[1754780628092,0.00300727,116620.0,116600.0,0.56855893]
[1754780628322,0.00300727,116620.0,116610.0,0.94200075]
[1754780628323,4.727e-05,116620.0,116610.0,0.94200075]
[1754780628533,4.727e-05,116620.0,116610.0,0.38880978]
[1754780628972,4.727e-05,116620.0,116610.0,0.32769171]
[1754780629213,4.727e-05,116620.0,116610.0,0.73736684]
[1754780629433,4.727e-05,116620.0,116610.0,0.82422895]
[1754780629646,4.727e-05,116620.0,116610.0,1.22880764]
[1754780630084,4.727e-05,116620.0,116610.0,1.14501339]
[1754780630300,4.727e-05,116620.0,116610.0,0.50944451]
[1754780630525,4.727e-05,116620.0,116610.0,0.82722895]
[1754780630737,4.727e-05,116620.0,116610.0,0.82910189]
[1754780630969,4.727e-05,116620.0,116610.0,0.83782748]
[1754780631174,4.727e-05,116620.0,116610.0,0.83582748]
[1754780631594,4.727e-05,116620.0,116610.0,0.83882748]
[1754780631799,4.727e-05,116620.0,116610.0,0.83582748]
[1754780632007,4.727e-05,116620.0,116610.0,0.5221701]
[1754780632227,4.727e-05,116620.0,116610.0,0.83982748]
[1754780632642,4.727e-05,116620.0,116610.0,0.86609982]
[1754780633823,4.727e-05,116620.0,116610.0,0.54844244]
[1754780634015,4.727e-05,116620.0,116610.0,0.86609982]
[1754780634235,4.727e-05,116620.0,116610.0,0.93809672]
[1754780635724,4.727e-05,116620.0,116610.0,0.62043934]
[1754780636163,4.727e-05,116620.0,116610.0,0.93809672]
[1754780638378,4.727e-05,116620.0,116610.0,0.83012619]
[1754780639239,4.727e-05,116620.0,116610.0,0.51246881]
[1754780639467,4.727e-05,116620.0,116610.0,0.83012619]
[1754780640361,4.727e-05,116620.0,116610.0,0.84614484]
[1754780644295,4.727e-05,116620.0,116610.0,0.52848746]
[1754780644515,4.727e-05,116620.0,116610.0,0.60536724]
[1754780644722,4.727e-05,116620.0,116610.0,0.92302462]
[1754780645378,4.727e-05,116620.0,116610.0,0.84614484]
[1754780646438,4.727e-05,116620.0,116610.0,0.84614364]
[1754780646862,4.727e-05,116620.0,116610.0,1.18614364]
[1754780647312,4.727e-05,116620.0,116610.0,1.29411417]
[1754780647738,4.727e-05,116620.0,116610.0,1.29411365]
[1754780651229,4.727e-05,116620.0,116610.0,0.97645627]
[1754780651427,4.727e-05,116620.0,116610.0,1.29411365]
[1754780651854,4.727e-05,116620.0,116610.0,0.97645627]
[1754780652253,0.00296,116640.0,116630.0,0.17148246]
[1754780652471,0.0050173,116640.0,116630.0,0.18749939]
[1754780653064,0.0050173,116640.0,116630.0,0.27429364]
[1754780653280,0.32266605,116640.0,116630.0,0.27429364]
[1754780653546,0.25685011,116650.0,116640.0,0.17146776]
[1754780653768,0.25685011,116650.0,116640.0,0.18748469]
[1754780653914,0.25886011,116650.0,116640.0,0.18748469]
[1754780654781,0.57650886,116650.0,116640.0,0.18748469]
[1754780655151,0.19051033,116650.0,116640.0,0.18748469]
[1754780655360,0.51111908,116650.0,116640.0,0.18748469]
[1754780657389,0.19347033,116650.0,116640.0,0.18748469]
[1754780657600,0.51111908,116650.0,116640.0,0.18748469]
[1754780659001,0.51111908,116650.0,116630.0,0.56605505]
[1754780659197,0.31764875,116640.0,116630.0,0.2484063]
[1754780659388,0.31966875,116640.0,116630.0,0.2484063]
[1754780659592,0.00202,116640.0,116630.0,0.2484063]
[1754780660294,0.00202,116640.0,116630.0,0.33820055]
[1754780660727,0.00202,116640.0,116630.0,0.33720055]
[1754780661178,0.1389,116640.0,116630.0,0.33820055]
[1754780661389,0.1389,116640.0,116630.0,0.2514063]
[1754780661607,0.00202,116640.0,116630.0,0.2514063]
[1754780662942,0.00202,116640.0,116630.0,0.2564663]
[1754780663165,0.637563,116650.0,116630.0,0.57411505]
[1754780663381,0.637563,116650.0,116640.0,0.17146776]
[1754780663603,0.639583,116650.0,116640.0,0.17146776]
[1754780664703,0.17146776,116640.0,116630.0,0.2524963]
[1754780664914,0.00202,116640.0,116630.0,0.2544663]
[1754780665580,0.31966875,116640.0,116630.0,0.2544663]
[1754780665803,0.00202,116640.0,116630.0,0.2534663]
[1754780666014,0.31966875,116640.0,116630.0,0.2534663]
[1754780666907,0.31966875,116640.0,116630.0,0.2544663]
[1754780667302,0.31966875,116640.0,116630.0,0.2564663]
[1754780667605,0.00202,116640.0,116630.0,0.2564663]
[1754780667816,0.31966875,116640.0,116630.0,0.34326055]
[1754780668452,0.31966875,116640.0,116630.0,0.2564663]
[1754780668656,0.00202,116640.0,116630.0,0.57411505]
[1754780668866,0.00202,116640.0,116630.0,0.2564663]
[1754780669078,0.31966875,116640.0,116630.0,0.2564663]
[1754780669276,0.00202,116640.0,116630.0,0.2564663]
[1754780669514,0.31966875,116640.0,116630.0,0.2564663]
[1754780669907,0.31966875,116640.0,116630.0,0.34326055]
[1754780670121,0.00202,116640.0,116630.0,0.2564663]
[1754780670547,0.31966875,116640.0,116630.0,0.2564663]
[1754780670976,0.00202,116640.0,116630.0,0.2564663]
[1754780671198,0.31966875,116640.0,116630.0,0.2564663]
[1754780674227,0.00202,116640.0,116630.0,0.17954246]
[1754780674381,0.31966875,116640.0,116630.0,0.26633671]
[1754780675839,0.31966875,116640.0,116630.0,0.17954246]
[1754780678326,0.00202,116640.0,116630.0,0.17954246]
[1754780678552,0.31966875,116640.0,116630.0,0.17954246]
[1754780679128,0.00202,116640.0,116630.0,0.49719121]
[1754780679347,0.637563,116650.0,116640.0,0.17146776]
[1754780679559,0.639583,116650.0,116640.0,0.17146776]
[1754780679786,0.639583,116650.0,116640.0,0.17343776]
[1754780679787,0.00202,116650.0,116640.0,0.17343776]
[1754780680011,0.45610875,116650.0,116640.0,0.17343776]
[1754780680217,0.45610875,116650.0,116640.0,0.17146776]
[1754780680672,0.13846,116650.0,116640.0,0.17146776]
[1754780681097,0.45610875,116650.0,116640.0,0.17146776]
[1754780681316,0.45610875,116650.0,116640.0,0.24864286]
[1754780681519,0.13846,116650.0,116640.0,0.25370286]
[1754780681760,0.45610875,116650.0,116640.0,0.25370286]
[1754780681929,0.00202,116650.0,116640.0,0.25370286]
[1754780682145,0.20893577,116670.0,116650.0,0.17145306]
[1754780682358,0.1364873,116660.0,116650.0,0.25171816]
[1754780682573,0.1364873,116660.0,116650.0,0.25368816]
[1754780682825,0.1364873,116660.0,116650.0,0.26229057]
[1754780683449,0.1364873,116660.0,116650.0,0.25568816]
[1754780683693,0.45413605,116660.0,116650.0,0.25368816]
[1754780683910,0.51786873,116660.0,116650.0,0.25368816]
[1754780684157,0.51786873,116660.0,116650.0,0.25568816]
[1754780684606,0.37367834,116660.0,116650.0,0.25568816]
[1754780684827,0.69132709,116660.0,116650.0,0.25668816]
[1754780685742,0.45413605,116660.0,116650.0,0.25668816]
[1754780686817,0.62557441,116660.0,116650.0,0.25668816]
[1754780688311,0.45413605,116660.0,116650.0,0.25668816]
[1754780688518,0.1364873,116660.0,116650.0,0.25668816]
[1754780688955,0.45413605,116660.0,116650.0,0.25668816]
[1754780690264,0.62557441,116660.0,116650.0,0.25668816]
[1754780690505,0.30792566,116660.0,116650.0,0.25668816]
[1754780690714,0.62557441,116660.0,116650.0,0.25668816]
[1754780691147,0.62723441,116660.0,116650.0,0.25668816]
[1754780691821,0.30958566,116660.0,116650.0,0.25668816]
[1754780692040,0.62723441,116660.0,116650.0,0.25668816]
[1754780695098,0.30958566,116660.0,116650.0,0.25668816]
[1754780695534,0.62723441,116660.0,116650.0,0.25668816]
[1754780696399,0.30958566,116660.0,116650.0,0.0852351]
[1754780696622,0.17314566,116660.0,116650.0,0.25668816]
[1754780697054,0.49079441,116660.0,116650.0,0.25668816]
[1754780697937,0.17314566,116660.0,116650.0,0.25668816]
[1754780698394,0.49079441,116660.0,116650.0,0.25668816]
[1754780701030,0.17314566,116660.0,116650.0,0.25668816]
[1754780701258,0.49079441,116660.0,116650.0,0.25668816]
[1754780702368,0.17314566,116660.0,116650.0,0.34348241]
[1754780702585,0.17314566,116660.0,116650.0,0.25668816]
[1754780702804,0.49079441,116660.0,116650.0,0.25668816]
[1754780703028,0.17314566,116660.0,116650.0,0.25668816]
[1754780703246,0.49079441,116660.0,116650.0,0.25668816]
[1754780703463,0.17314566,116660.0,116650.0,0.25668816]
[1754780704141,0.49079441,116660.0,116650.0,0.25668816]
[1754780704354,0.17314566,116660.0,116650.0,0.25668816]
[1754780704573,0.49079441,116660.0,116650.0,0.25668816]
[1754780704806,0.49079441,116660.0,116650.0,0.0852351]
[1754780705034,0.17314566,116660.0,116650.0,0.0852351]
[1754780705255,0.17314566,116660.0,116650.0,0.0821451]
[1754780705469,0.49079441,116660.0,116650.0,0.0821451]
[1754780705910,0.57503693,116660.0,116650.0,0.0801751]
[1754780706368,0.89268568,116660.0,116650.0,0.0801751]
[1754780707030,0.25738818,116660.0,116650.0,0.0801751]
[1754780707252,0.57503693,116660.0,116650.0,0.0801751]
[1754780708358,0.25738818,116660.0,116650.0,0.0801751]
[1754780708579,0.57503693,116660.0,116650.0,0.0801751]
[1754780709018,0.25738818,116660.0,116650.0,0.0801751]
[1754780709460,0.57503693,116660.0,116650.0,0.0801751]
[1754780710141,0.17634566,116660.0,116650.0,0.0801751]
[1754780710356,0.49079441,116660.0,116650.0,0.25671816]
[1754780710801,0.49079441,116660.0,116650.0,0.0852651]
[1754780712330,0.49079441,116660.0,116650.0,0.00809]
[1754780712774,0.17314566,116660.0,116650.0,0.17954306]
[1754780712981,0.49079441,116660.0,116650.0,0.17954306]
[1754780713193,0.17314566,116660.0,116650.0,0.17954306]
[1754780713399,0.49079441,116660.0,116650.0,0.17954306]
[1754780714023,0.17314566,116660.0,116650.0,0.17954306]
[1754780714223,0.49079441,116660.0,116650.0,0.00809]
[1754780715728,0.57184293,116660.0,116650.0,0.00504]
[1754780716362,0.57184293,116660.0,116650.0,0.003]
[1754780716800,0.49079441,116660.0,116650.0,0.003]
[1754780717222,0.17314566,116660.0,116650.0,0.003]
[1754780717432,0.49079441,116660.0,116650.0,0.003]
[1754780717898,0.49079441,116660.0,116650.0,0.08016861]
[1754780718340,0.17314566,116660.0,116650.0,0.08016861]
[1754780718547,0.49079441,116660.0,116650.0,0.08016861]
[1754780718774,0.17314566,116660.0,116650.0,0.25162167]
[1754780718985,0.49079441,116660.0,116650.0,0.25369167]
[1754780719853,0.49079441,116660.0,116650.0,0.17652306]
[1754780720368,0.17314566,116660.0,116650.0,0.17652306]
[1754780720880,0.49079441,116660.0,116650.0,0.17652306]
[1754780721140,0.17314566,116660.0,116650.0,0.17652306]
[1754780721402,0.49079441,116660.0,116650.0,0.17652306]
[1754780722249,0.17314566,116660.0,116650.0,0.17652306]
[1754780722480,0.49079441,116660.0,116650.0,0.17652306]
[1754780723216,0.17314566,116660.0,116650.0,0.17652306]
[1754780723458,0.49079441,116660.0,116650.0,0.17947306]
[1754780723701,0.17314566,116660.0,116650.0,0.17947306]
[1754780723938,0.49079441,116660.0,116650.0,0.17947306]
[1754780724623,0.17314566,116660.0,116650.0,0.17947306]
[1754780724846,0.49079441,116660.0,116650.0,0.17947306]
[1754780725076,0.17314566,116660.0,116650.0,0.17947306]
[1754780725751,0.49079441,116660.0,116650.0,0.17947306]
[1754780726193,0.17314566,116660.0,116650.0,0.17947306]
[1754780726400,0.49079441,116660.0,116650.0,0.17947306]
[1754780726871,0.17314566,116660.0,116650.0,0.17947306]
[1754780727108,0.49079441,116660.0,116650.0,0.17947306]
[1754780728292,0.17314566,116660.0,116650.0,0.17947306]
[1754780728550,0.49079441,116660.0,116650.0,0.17947306]
[1754780728746,0.17314566,116660.0,116650.0,0.17947306]
[1754780729050,0.49079441,116660.0,116650.0,0.17947306]
[1754780729541,0.17314566,116660.0,116650.0,0.17947306]
[1754780729764,0.49079441,116660.0,116650.0,0.17947306]
[1754780730972,0.48913441,116660.0,116650.0,0.17947306]
[1754780731101,4.73e-05,116660.0,116650.0,0.58398392]
[1754780731332,0.1374473,116660.0,116650.0,0.82935445]
[1754780731768,0.1374473,116660.0,116650.0,0.82635445]
[1754780732002,0.1374473,116660.0,116650.0,0.5087057]
[1754780732194,0.1374473,116660.0,116650.0,0.5137057]
[1754780732612,0.1374473,116660.0,116650.0,0.5117057]
[1754780732815,0.1374473,116660.0,116650.0,0.82935445]
[1754780733031,0.1374473,116660.0,116650.0,0.83135445]
[1754780733250,0.45509605,116660.0,116650.0,0.3733057]
[1754780733458,0.8374768,116660.0,116650.0,0.3682857]
[1754780733687,1.01184516,116660.0,116650.0,0.3702857]
[1754780733912,1.01184516,116660.0,116650.0,0.26231517]
[1754780734127,1.01184516,116660.0,116650.0,0.004]
[1754780734351,0.69419641,116660.0,116650.0,0.004]
[1754780734564,0.63154441,116660.0,116650.0,0.004]
[1754780735400,0.94919316,116660.0,116650.0,0.004]
[1754780735613,0.17356566,116660.0,116650.0,0.51545306]
[1754780735876,0.49121441,116660.0,116650.0,0.51545306]
[1754780736104,0.49121441,116660.0,116650.0,0.51752306]
[1754780738231,0.31340566,116660.0,116650.0,0.51752306]
[1754780738437,0.63105441,116660.0,116650.0,0.51752306]
[1754780740485,0.63105441,116660.0,116650.0,0.344]
[1754780741375,0.71452524,116660.0,116650.0,0.344]
[1754780741618,0.63398441,116660.0,116650.0,0.344]
[1754780744456,0.63398441,116660.0,116650.0,0.42113309]
[1754780744687,1.26928191,116660.0,116650.0,0.08113309]
[1754780744917,0.95163316,116660.0,116650.0,0.004]
[1754780745167,0.97737816,116660.0,116650.0,0.004]
[1754780745400,0.97737816,116660.0,116650.0,0.002]
[1754780745612,1.49314327,116660.0,116650.0,0.003]
[1754780746519,1.49314327,116660.0,116650.0,0.001]
[1754780746706,1.83314327,116660.0,116650.0,0.001]
[1754780746987,0.88019702,116660.0,116650.0,0.001]
[1754780747207,0.88119702,116660.0,116650.0,0.001]
[1754780747458,1.83314327,116660.0,116650.0,0.001]
[1754780748098,1.83514327,116660.0,116650.0,0.001]
[1754780749030,0.17148246,116630.0,116620.0,0.08018309]
[1754780749246,0.62837121,116630.0,116620.0,0.08225309]
[1754780750785,0.31072246,116630.0,116620.0,0.08425309]
[1754780751005,0.62837121,116630.0,116620.0,0.08425309]
[1754780751844,0.62837121,116630.0,116620.0,0.00712]
[1754780752088,0.70329017,116630.0,116620.0,0.002]
[1754780752303,0.70652017,116630.0,116620.0,0.002]
[1754780752511,0.64197863,116630.0,116620.0,0.002]
[1754780752699,0.64197863,116630.0,116620.0,0.004]
[1754780753873,0.63874863,116630.0,116620.0,0.004]
[1754780755265,0.32109988,116630.0,116620.0,0.004]
[1754780755511,0.63874863,116630.0,116620.0,0.004]
[1754780759214,0.64198863,116630.0,116620.0,0.004]
[1754780761092,0.72878288,116630.0,116620.0,0.004]
[1754780761219,0.72554288,116630.0,116620.0,0.004]